[Event "Titled Tuesday Blitz February 14 Early 2023"]
[White "Carrasco Miranda, Andres"]
[Black "Prudnykova, Olga"]
[WhiteFideId "3405990"]
[BlackFideId "14121093"]
[WhiteElo "2240"]
[BlackElo "2268"]
[Result "1-0"]
[Round "06"]
[TimeControl "180+2"]
[Date "2023.02.15"]
[WhiteClock "0:01:01"]
[BlackClock "0:00:15"]

1. d4 {[%clk 0:03:00]}  Nf6 {[%clk 0:02:58]} 2. c4 {[%clk 0:03:00]}  g6 {[%clk 0:02:58]} 3. g3 {[%clk 0:03:00]}  Bg7 {[%clk 0:02:58]} 4. Bg2 {[%clk 0:03:00]}  d5 {[%clk 0:02:58]} 5. cxd5 {[%clk 0:03:00]}  Nxd5 {[%clk 0:02:59]} 6. Nc3 {[%clk 0:02:59]}  Nb6 {[%clk 0:02:59]} 7. Nf3 {[%clk 0:02:59]}  Nc6 {[%clk 0:02:59]} 8. O-O {[%clk 0:02:59]}  Nxd4 {[%clk 0:02:57]} 9. Nxd4 {[%clk 0:02:47]}  Qxd4 {[%clk 0:02:43]} 10. Qxd4 {[%clk 0:02:36]}  Bxd4 {[%clk 0:02:43]} 11. Nb5 {[%clk 0:02:37]}  Be5 {[%clk 0:02:42]} 12. Bf4 {[%clk 0:02:36]}  Bxf4 {[%clk 0:02:33]} 13. gxf4 {[%clk 0:02:36]}  O-O {[%clk 0:02:32]} 14. Nxc7 {[%clk 0:02:36]}  Rb8 {[%clk 0:02:32]} 15. Nd5 {[%clk 0:02:29]}  Nxd5 {[%clk 0:02:25]} 16. Bxd5 {[%clk 0:02:30]}  Rd8 {[%clk 0:02:22]} 17. Rfd1 {[%clk 0:02:30]}  Bf5 {[%clk 0:02:18]} 18. e4 {[%clk 0:02:29]}  Bg4 {[%clk 0:02:18]} 19. Rdc1 {[%clk 0:02:25]}  e6 {[%clk 0:02:18]} 20. Bb3 {[%clk 0:02:24]}  Rd2 {[%clk 0:02:17]} 21. Rc7 {[%clk 0:02:18]}  Bf3 {[%clk 0:02:07]} 22. f5 {[%clk 0:02:08]}  Bxe4 {[%clk 0:01:11]} 23. fxe6 {[%clk 0:02:06]}  fxe6 {[%clk 0:01:09]} 24. Bxe6+ {[%clk 0:02:06]}  Kh8 {[%clk 0:01:07]} 25. Re1 {[%clk 0:02:05]}  Bf3 {[%clk 0:00:47]} 26. Bb3 {[%clk 0:01:53]}  Re2 {[%clk 0:00:46]} 27. Rxe2 {[%clk 0:01:45]}  Bxe2 {[%clk 0:00:45]} 28. Kg2 {[%clk 0:01:44]}  a5 {[%clk 0:00:39]} 29. Bd5 {[%clk 0:01:35]}  b5 {[%clk 0:00:38]} 30. Ra7 {[%clk 0:01:36]}  a4 {[%clk 0:00:37]} 31. a3 {[%clk 0:01:35]}  Rd8 {[%clk 0:00:37]} 32. Ra8 {[%clk 0:01:35]}  Rxa8 {[%clk 0:00:33]} 33. Bxa8 {[%clk 0:01:36]}  Kg7 {[%clk 0:00:33]} 34. Kg3 {[%clk 0:01:36]}  Kf6 {[%clk 0:00:33]} 35. Kf4 {[%clk 0:01:37]}  g5+ {[%clk 0:00:31]} 36. Ke4 {[%clk 0:01:36]}  Bf1 {[%clk 0:00:29]} 37. Kd4 {[%clk 0:01:33]}  Ke6 {[%clk 0:00:28]} 38. Kc5 {[%clk 0:01:26]}  Ke5 {[%clk 0:00:23]} 39. Bc6 {[%clk 0:01:26]}  Kf4 {[%clk 0:00:21]} 40. Bxb5 {[%clk 0:01:14]}  Bxb5 {[%clk 0:00:20]} 41. Kxb5 {[%clk 0:01:15]}  Kf3 {[%clk 0:00:19]} 42. Kxa4 {[%clk 0:01:15]}  Kxf2 {[%clk 0:00:20]} 43. b4 {[%clk 0:01:16]}  g4 {[%clk 0:00:19]} 44. b5 {[%clk 0:01:17]}  Kg2 {[%clk 0:00:20]} 45. b6 {[%clk 0:01:18]}  Kxh2 {[%clk 0:00:21]} 46. b7 {[%clk 0:01:18]}  g3 {[%clk 0:00:21]} 47. b8=Q {[%clk 0:01:19]}  h5 {[%clk 0:00:21]} 48. Qf4 {[%clk 0:01:16]}  Kh3 {[%clk 0:00:19]} 49. Qf3 {[%clk 0:01:15]}  h4 {[%clk 0:00:19]} 50. Qh1+ {[%clk 0:01:14]}  Kg4 {[%clk 0:00:19]} 51. Kb4 {[%clk 0:01:14]}  h3 {[%clk 0:00:19]} 52. Qe4+ {[%clk 0:01:14]}  Kg5 {[%clk 0:00:19]} 53. a4 {[%clk 0:01:14]}  g2 {[%clk 0:00:19]} 54. Qe5+ {[%clk 0:00:59]}  Kg4 {[%clk 0:00:19]} 55. Qh2 {[%clk 0:01:00]}  Kf3 {[%clk 0:00:13]} 56. Qxh3+ {[%clk 0:01:00]}  Kf2 {[%clk 0:00:14]} 57. Qxg2+ {[%clk 0:01:00]}  Kxg2 {[%clk 0:00:15]} 58. a5 {[%clk 0:01:01]} 1-0


[Site "https://www.chess.com"]

[Event "Titled Tuesday Blitz February 14 Early 2023"]
[White "Kubatko, Ivan"]
[Black "Hartikainen, Jarmo"]
[WhiteFideId "24111473"]
[BlackFideId "503134"]
[WhiteElo "2257"]
[BlackElo "2108"]
[Result "1-0"]
[Round "06"]
[TimeControl "180+2"]
[Date "2023.02.15"]
[WhiteClock "0:00:04"]
[BlackClock "0:00:01"]

1. e4 {[%clk 0:02:57]}  c5 {[%clk 0:02:59]} 2. c3 {[%clk 0:02:57]}  d5 {[%clk 0:02:59]} 3. exd5 {[%clk 0:02:56]}  Qxd5 {[%clk 0:02:59]} 4. d4 {[%clk 0:02:56]}  cxd4 {[%clk 0:03:00]} 5. cxd4 {[%clk 0:02:55]}  Nc6 {[%clk 0:03:00]} 6. Nf3 {[%clk 0:02:52]}  Bg4 {[%clk 0:03:01]} 7. Nc3 {[%clk 0:02:50]}  Bxf3 {[%clk 0:03:00]} 8. gxf3 {[%clk 0:02:50]}  Qxd4 {[%clk 0:02:59]} 9. Qxd4 {[%clk 0:02:50]}  Nxd4 {[%clk 0:02:59]} 10. Nb5 {[%clk 0:02:50]}  Nc2+ {[%clk 0:02:59]} 11. Kd1 {[%clk 0:02:50]}  Nxa1 {[%clk 0:03:00]} 12. Nc7+ {[%clk 0:02:50]}  Kd8 {[%clk 0:03:01]} 13. Nxa8 {[%clk 0:02:51]}  g6 {[%clk 0:03:01]} 14. Be3 {[%clk 0:02:13]}  Bh6 {[%clk 0:03:00]} 15. Bxa7 {[%clk 0:01:50]}  Nf6 {[%clk 0:02:59]} 16. Bb5 {[%clk 0:01:45]}  e6 {[%clk 0:02:38]} 17. Nb6 {[%clk 0:01:01]}  Kc7 {[%clk 0:02:29]} 18. Nc4 {[%clk 0:00:46]}  Nd5 {[%clk 0:02:03]} 19. Bd4 {[%clk 0:00:30]}  Ra8 {[%clk 0:01:46]} 20. a4 {[%clk 0:00:09]}  Nb3 {[%clk 0:01:37]} 21. Be5+ {[%clk 0:00:09]}  Kd8 {[%clk 0:01:37]} 22. Kc2 {[%clk 0:00:08]}  Nc5 {[%clk 0:01:34]} 23. Rd1 {[%clk 0:00:07]}  Nxa4 {[%clk 0:01:26]} 24. Nd6 {[%clk 0:00:03]}  Ke7 {[%clk 0:01:10]} 25. Nxb7 {[%clk 0:00:03]}  Rc8+ {[%clk 0:01:05]} 26. Kb1 {[%clk 0:00:03]}  Nc5 {[%clk 0:01:03]} 27. Nxc5 {[%clk 0:00:03]}  Rxc5 {[%clk 0:01:03]} 28. Bd3 {[%clk 0:00:03]}  Nf4 {[%clk 0:00:44]} 29. Bxf4 {[%clk 0:00:03]}  Bxf4 {[%clk 0:00:44]} 30. b4 {[%clk 0:00:04]}  Rc8 {[%clk 0:00:29]} 31. b5 {[%clk 0:00:04]}  Bxh2 {[%clk 0:00:26]} 32. Rh1 {[%clk 0:00:03]}  Be5 {[%clk 0:00:19]} 33. Rxh7 {[%clk 0:00:03]}  Rd8 {[%clk 0:00:20]} 34. Bxg6 {[%clk 0:00:03]}  Rb8 {[%clk 0:00:16]} 35. Rxf7+ {[%clk 0:00:02]}  Kd6 {[%clk 0:00:15]} 36. Bd3 {[%clk 0:00:03]}  Bd4 {[%clk 0:00:14]} 37. f4 {[%clk 0:00:02]}  Bxf2 {[%clk 0:00:14]} 38. Rf6 {[%clk 0:00:02]}  Kd5 {[%clk 0:00:12]} 39. Kc2 {[%clk 0:00:02]}  Be3 {[%clk 0:00:11]} 40. f5 {[%clk 0:00:02]}  exf5 {[%clk 0:00:10]} 41. Rxf5+ {[%clk 0:00:02]}  Kd6 {[%clk 0:00:09]} 42. Bc4 {[%clk 0:00:02]}  Bb6 {[%clk 0:00:09]} 43. Kd3 {[%clk 0:00:03]}  Ke7 {[%clk 0:00:08]} 44. Rf7+ {[%clk 0:00:03]}  Kd6 {[%clk 0:00:07]} 45. Rh7 {[%clk 0:00:03]}  Rd8 {[%clk 0:00:06]} 46. Rh6+ {[%clk 0:00:03]}  Kc7+ {[%clk 0:00:07]} 47. Kc3 {[%clk 0:00:04]}  Rd6 {[%clk 0:00:07]} 48. Rh7+ {[%clk 0:00:04]}  Rd7 {[%clk 0:00:07]} 49. Rh5 {[%clk 0:00:04]}  Rd6 {[%clk 0:00:06]} 50. Kb3 {[%clk 0:00:04]}  Rd7 {[%clk 0:00:06]} 51. Be6 {[%clk 0:00:04]}  Rd6 {[%clk 0:00:06]} 52. Rh7+ {[%clk 0:00:04]}  Kb8 {[%clk 0:00:06]} 53. Bd7 {[%clk 0:00:04]}  Bc7 {[%clk 0:00:04]} 54. Bc6 {[%clk 0:00:04]}  Rd3+ {[%clk 0:00:04]} 55. Kc4 {[%clk 0:00:04]}  Rd8 {[%clk 0:00:04]} 56. Kc5 {[%clk 0:00:04]}  Rd1 {[%clk 0:00:02]} 57. Rh8+ {[%clk 0:00:03]}  Rd8 {[%clk 0:00:01]} 58. Rh5 {[%clk 0:00:03]}  Bd6+ {[%clk 0:00:01]} 59. Kc4 {[%clk 0:00:04]}  Bc7 {[%clk 0:00:01]} 60. Rh7 {[%clk 0:00:04]}  Bd6 {[%clk 0:00:01]} 61. b6 {[%clk 0:00:04]} 1-0


[Site "https://www.chess.com"]

[Event "Titled Tuesday Blitz February 14 Early 2023"]
[White "Marosi, Levente"]
[Black "Kuchava, Ana"]
[WhiteFideId "747181"]
[BlackFideId "13605348"]
[WhiteElo "2303"]
[BlackElo "2101"]
[Result "1-0"]
[Round "06"]
[TimeControl "180+2"]
[Date "2023.02.15"]
[WhiteClock "0:00:55"]
[BlackClock "0:00:05"]

1. e4 {[%clk 0:03:00]}  c5 {[%clk 0:02:54]} 2. Nf3 {[%clk 0:03:00]}  d6 {[%clk 0:02:54]} 3. d4 {[%clk 0:03:00]}  cxd4 {[%clk 0:02:55]} 4. Nxd4 {[%clk 0:03:01]}  Nf6 {[%clk 0:02:54]} 5. Nc3 {[%clk 0:03:00]}  Nc6 {[%clk 0:02:53]} 6. Bg5 {[%clk 0:03:00]}  e6 {[%clk 0:02:51]} 7. Qd2 {[%clk 0:03:00]}  Qb6 {[%clk 0:02:50]} 8. Bxf6 {[%clk 0:02:58]}  gxf6 {[%clk 0:02:49]} 9. Nb3 {[%clk 0:02:59]}  Bd7 {[%clk 0:02:47]} 10. Be2 {[%clk 0:03:00]}  h5 {[%clk 0:02:41]} 11. Rf1 {[%clk 0:03:00]}  O-O-O {[%clk 0:02:27]} 12. f4 {[%clk 0:03:00]}  h4 {[%clk 0:02:19]} 13. O-O-O {[%clk 0:02:57]}  Be7 {[%clk 0:02:07]} 14. Kb1 {[%clk 0:02:56]}  Kb8 {[%clk 0:01:46]} 15. Rf3 {[%clk 0:02:53]}  Rdg8 {[%clk 0:01:30]} 16. Bf1 {[%clk 0:02:52]}  Rg4 {[%clk 0:01:05]} 17. Qe1 {[%clk 0:02:36]}  a6 {[%clk 0:00:53]} 18. Rh3 {[%clk 0:02:35]}  Ka8 {[%clk 0:00:47]} 19. Rf3 {[%clk 0:02:29]}  h3 {[%clk 0:00:36]} 20. g3 {[%clk 0:02:25]}  Rg7 {[%clk 0:00:24]} 21. Qd2 {[%clk 0:02:20]}  Rgg8 {[%clk 0:00:15]} 22. Rd3 {[%clk 0:02:18]}  Rc8 {[%clk 0:00:14]} 23. Rxd6 {[%clk 0:02:12]}  Bxd6 {[%clk 0:00:13]} 24. Qxd6 {[%clk 0:02:13]}  Rcd8 {[%clk 0:00:12]} 25. Qc5 {[%clk 0:02:12]}  Qxc5 {[%clk 0:00:12]} 26. Nxc5 {[%clk 0:02:13]}  Bc8 {[%clk 0:00:12]} 27. Rxd8 {[%clk 0:02:11]}  Rxd8 {[%clk 0:00:13]} 28. Kc1 {[%clk 0:02:10]}  e5 {[%clk 0:00:12]} 29. f5 {[%clk 0:02:10]}  Nd4 {[%clk 0:00:11]} 30. Nd5 {[%clk 0:02:04]}  Rd6 {[%clk 0:00:11]} 31. Bxh3 {[%clk 0:01:57]}  Nf3 {[%clk 0:00:11]} 32. a4 {[%clk 0:01:31]}  Nxh2 {[%clk 0:00:11]} 33. a5 {[%clk 0:01:31]}  Nf3 {[%clk 0:00:11]} 34. c3 {[%clk 0:01:24]}  Ng5 {[%clk 0:00:10]} 35. Bg2 {[%clk 0:01:24]}  Kb8 {[%clk 0:00:10]} 36. b4 {[%clk 0:01:23]}  Bd7 {[%clk 0:00:10]} 37. c4 {[%clk 0:01:23]}  Bc6 {[%clk 0:00:08]} 38. Nd3 {[%clk 0:01:15]}  Bxd5 {[%clk 0:00:09]} 39. exd5 {[%clk 0:01:16]}  e4 {[%clk 0:00:08]} 40. Nf4 {[%clk 0:01:14]}  Kc7 {[%clk 0:00:06]} 41. Kd2 {[%clk 0:01:14]}  Rd8 {[%clk 0:00:06]} 42. Ke3 {[%clk 0:01:14]}  Re8 {[%clk 0:00:06]} 43. c5 {[%clk 0:01:15]}  Nf3 {[%clk 0:00:05]} 44. Nh5 {[%clk 0:01:05]}  Re5 {[%clk 0:00:04]} 45. Nxf6 {[%clk 0:01:02]}  Rxf5 {[%clk 0:00:04]} 46. Nxe4 {[%clk 0:01:02]}  Ng5 {[%clk 0:00:03]} 47. d6+ {[%clk 0:01:02]}  Kd7 {[%clk 0:00:03]} 48. Nxg5 {[%clk 0:01:00]}  Rxg5 {[%clk 0:00:04]} 49. Bxb7 {[%clk 0:01:00]}  Rxg3+ {[%clk 0:00:04]} 50. Kd4 {[%clk 0:00:59]}  Rb3 {[%clk 0:00:05]} 51. Kd5 {[%clk 0:00:54]}  Rxb4 {[%clk 0:00:04]} 52. c6+ {[%clk 0:00:54]}  Kd8 {[%clk 0:00:05]} 53. c7+ {[%clk 0:00:54]}  Kd7 {[%clk 0:00:05]} 54. c8=Q# {[%clk 0:00:55]} 1-0


[Site "https://www.chess.com"]

[Event "Titled Tuesday Blitz February 14 Early 2023"]
[White "Sadovsky, Artem"]
[Black "Sovetbekova, Nurai"]
[WhiteFideId "4155840"]
[BlackFideId "13801910"]
[WhiteElo "2276"]
[BlackElo "1764"]
[Result "0-1"]
[Round "06"]
[TimeControl "180+2"]
[Date "2023.02.15"]
[WhiteClock "0:00:01"]
[BlackClock "0:00:06"]

1. Nf3 {[%clk 0:03:00]}  Nf6 {[%clk 0:02:58]} 2. e3 {[%clk 0:02:58]}  g6 {[%clk 0:02:57]} 3. b3 {[%clk 0:02:31]}  Bg7 {[%clk 0:02:56]} 4. Bb2 {[%clk 0:02:32]}  O-O {[%clk 0:02:56]} 5. Be2 {[%clk 0:01:49]}  c5 {[%clk 0:02:53]} 6. c4 {[%clk 0:01:43]}  Nc6 {[%clk 0:02:49]} 7. d4 {[%clk 0:01:42]}  d5 {[%clk 0:02:23]} 8. dxc5 {[%clk 0:01:40]}  Qa5+ {[%clk 0:02:16]} 9. Qd2 {[%clk 0:01:24]}  dxc4 {[%clk 0:02:08]} 10. Bxc4 {[%clk 0:01:21]}  Qxc5 {[%clk 0:02:00]} 11. O-O {[%clk 0:00:39]}  Bg4 {[%clk 0:01:52]} 12. Nd4 {[%clk 0:00:31]}  Rad8 {[%clk 0:01:43]} 13. Qe1 {[%clk 0:00:22]}  Nd5 {[%clk 0:01:11]} 14. h3 {[%clk 0:00:03]}  Nxd4 {[%clk 0:00:57]} 15. exd4 {[%clk 0:00:03]}  Bxd4 {[%clk 0:00:53]} 16. Bxd4 {[%clk 0:00:02]}  Qxd4 {[%clk 0:00:54]} 17. Nd2 {[%clk 0:00:02]}  Nb4 {[%clk 0:00:43]} 18. hxg4 {[%clk 0:00:01]}  Nc2 {[%clk 0:00:35]} 19. Qxe7 {[%clk 0:00:01]}  Nxa1 {[%clk 0:00:28]} 20. Nf3 {[%clk 0:00:01]}  Qg7 {[%clk 0:00:25]} 21. Qh4 {[%clk 0:00:01]}  h6 {[%clk 0:00:18]} 22. g5 {[%clk 0:00:02]}  h5 {[%clk 0:00:17]} 23. Qf4 {[%clk 0:00:02]}  Nc2 {[%clk 0:00:16]} 24. Ne5 {[%clk 0:00:02]}  Nd4 {[%clk 0:00:10]} 25. Re1 {[%clk 0:00:02]}  Ne6 {[%clk 0:00:10]} 26. Bxe6 {[%clk 0:00:02]}  fxe6 {[%clk 0:00:10]} 27. Qe4 {[%clk 0:00:02]}  Rf5 {[%clk 0:00:07]} 28. Qf3 {[%clk 0:00:01]}  Rxe5 {[%clk 0:00:06]} 0-1


[Site "https://www.chess.com"]

[Event "Titled Tuesday Blitz February 14 Early 2023"]
[White "Orzech, Dominik"]
[Black "Georg, Heinz"]
[WhiteFideId "1115065"]
[BlackFideId "4607295"]
[WhiteElo "2308"]
[BlackElo "2107"]
[Result "1/2-1/2"]
[Round "06"]
[TimeControl "180+2"]
[Date "2023.02.15"]
[WhiteClock "0:00:06"]
[BlackClock "0:00:04"]

1. e4 {[%clk 0:03:00]}  e5 {[%clk 0:02:44]} 2. Nf3 {[%clk 0:02:58]}  Nc6 {[%clk 0:02:43]} 3. Bc4 {[%clk 0:02:58]}  Nf6 {[%clk 0:02:43]} 4. Ng5 {[%clk 0:02:55]}  d5 {[%clk 0:02:43]} 5. exd5 {[%clk 0:02:54]}  b5 {[%clk 0:02:43]} 6. Bxb5 {[%clk 0:02:47]}  Qxd5 {[%clk 0:02:42]} 7. Bxc6+ {[%clk 0:02:30]}  Qxc6 {[%clk 0:02:42]} 8. O-O {[%clk 0:02:27]}  h6 {[%clk 0:02:39]} 9. Nf3 {[%clk 0:02:23]}  e4 {[%clk 0:02:39]} 10. Nd4 {[%clk 0:02:03]}  Qd5 {[%clk 0:02:37]} 11. c3 {[%clk 0:01:55]}  Bc5 {[%clk 0:02:28]} 12. Re1 {[%clk 0:01:43]}  Bxd4 {[%clk 0:02:22]} 13. Qa4+ {[%clk 0:01:42]}  Bd7 {[%clk 0:02:19]} 14. Qxd4 {[%clk 0:01:41]}  Qxd4 {[%clk 0:02:17]} 15. cxd4 {[%clk 0:01:41]}  O-O-O {[%clk 0:02:16]} 16. Nc3 {[%clk 0:01:37]}  Bc6 {[%clk 0:02:16]} 17. d5 {[%clk 0:01:19]}  Nxd5 {[%clk 0:02:04]} 18. Nxd5 {[%clk 0:01:16]}  Rxd5 {[%clk 0:01:40]} 19. b3 {[%clk 0:01:06]}  Rd3 {[%clk 0:01:29]} 20. Re3 {[%clk 0:00:58]}  Rhd8 {[%clk 0:01:23]} 21. h3 {[%clk 0:00:40]}  f5 {[%clk 0:01:20]} 22. Bb2 {[%clk 0:00:38]}  g6 {[%clk 0:01:18]} 23. Bc3 {[%clk 0:00:36]}  f4 {[%clk 0:00:32]} 24. Rxd3 {[%clk 0:00:34]}  Rxd3 {[%clk 0:00:32]} 25. Re1 {[%clk 0:00:32]}  Kd7 {[%clk 0:00:29]} 26. b4 {[%clk 0:00:29]}  g5 {[%clk 0:00:21]} 27. a3 {[%clk 0:00:28]}  h5 {[%clk 0:00:21]} 28. Kf1 {[%clk 0:00:26]}  Ke6 {[%clk 0:00:17]} 29. Kg1 {[%clk 0:00:23]}  Kf5 {[%clk 0:00:17]} 30. Kf1 {[%clk 0:00:22]}  g4 {[%clk 0:00:17]} 31. hxg4+ {[%clk 0:00:21]}  hxg4 {[%clk 0:00:17]} 32. Kg1 {[%clk 0:00:21]}  Bb5 {[%clk 0:00:16]} 33. Kh2 {[%clk 0:00:20]}  Rd7 {[%clk 0:00:15]} 34. Kg1 {[%clk 0:00:19]}  Rh7 {[%clk 0:00:12]} 35. Bd4 {[%clk 0:00:17]}  a6 {[%clk 0:00:11]} 36. Bc3 {[%clk 0:00:15]}  c6 {[%clk 0:00:10]} 37. Bd4 {[%clk 0:00:14]}  f3 {[%clk 0:00:08]} 38. gxf3 {[%clk 0:00:13]}  gxf3 {[%clk 0:00:07]} 39. Be3 {[%clk 0:00:12]}  Rg7+ {[%clk 0:00:07]} 40. Kh2 {[%clk 0:00:08]}  Rh7+ {[%clk 0:00:06]} 41. Kg1 {[%clk 0:00:07]}  Rg7+ {[%clk 0:00:04]} 42. Kh1 {[%clk 0:00:06]}  Rh7+ {[%clk 0:00:04]} 43. Kg1 {[%clk 0:00:06]} 1/2-1/2


[Site "https://www.chess.com"]

[Event "Titled Tuesday Blitz February 14 Early 2023"]
[White "Aarav Dengla"]
[Black "Gedgafov, Chamal"]
[WhiteFideId "45059756"]
[BlackFideId "34130621"]
[WhiteElo "2343"]
[BlackElo "2118"]
[Result "1-0"]
[Round "06"]
[TimeControl "180+2"]
[Date "2023.02.15"]
[WhiteClock "0:00:09"]
[BlackClock "0:00:18"]

1. e4 {[%clk 0:03:00]}  e6 {[%clk 0:02:56]} 2. d4 {[%clk 0:02:57]}  d5 {[%clk 0:02:56]} 3. e5 {[%clk 0:02:57]}  c5 {[%clk 0:02:55]} 4. c3 {[%clk 0:02:58]}  Nc6 {[%clk 0:02:56]} 5. Nf3 {[%clk 0:02:58]}  Qb6 {[%clk 0:02:56]} 6. Be2 {[%clk 0:02:56]}  cxd4 {[%clk 0:02:56]} 7. cxd4 {[%clk 0:02:57]}  Nh6 {[%clk 0:02:57]} 8. Bxh6 {[%clk 0:02:32]}  Qxb2 {[%clk 0:02:55]} 9. Bd2 {[%clk 0:02:09]}  Qxa1 {[%clk 0:02:55]} 10. Qb3 {[%clk 0:02:08]}  Nxd4 {[%clk 0:02:32]} 11. Nxd4 {[%clk 0:01:42]}  Qxd4 {[%clk 0:02:29]} 12. Bb5+ {[%clk 0:01:41]}  Kd8 {[%clk 0:02:21]} 13. O-O {[%clk 0:01:40]}  Qxe5 {[%clk 0:02:14]} 14. Bc3 {[%clk 0:01:29]}  Qd6 {[%clk 0:02:05]} 15. Nd2 {[%clk 0:01:20]}  Bd7 {[%clk 0:01:59]} 16. Bd3 {[%clk 0:01:18]}  Bc6 {[%clk 0:01:54]} 17. Nf3 {[%clk 0:01:13]}  f6 {[%clk 0:01:54]} 18. Nd4 {[%clk 0:01:04]}  g6 {[%clk 0:01:46]} 19. Nxc6+ {[%clk 0:00:59]}  bxc6 {[%clk 0:01:41]} 20. Bxf6+ {[%clk 0:00:57]}  Kc7 {[%clk 0:01:41]} 21. Bxh8 {[%clk 0:00:52]}  Bh6 {[%clk 0:01:40]} 22. Bc3 {[%clk 0:00:50]}  Rb8 {[%clk 0:01:38]} 23. Qa4 {[%clk 0:00:49]}  Rb7 {[%clk 0:01:31]} 24. Qh4 {[%clk 0:00:45]}  Qf8 {[%clk 0:01:24]} 25. Be5+ {[%clk 0:00:38]}  Kd7 {[%clk 0:01:23]} 26. Rd1 {[%clk 0:00:25]}  Rb6 {[%clk 0:01:16]} 27. Qa4 {[%clk 0:00:22]}  Qa8 {[%clk 0:00:57]} 28. Bd4 {[%clk 0:00:20]}  Rb7 {[%clk 0:00:57]} 29. Ba6 {[%clk 0:00:18]}  Rc7 {[%clk 0:00:56]} 30. Bc5 {[%clk 0:00:18]}  Bf8 {[%clk 0:00:54]} 31. Qd4 {[%clk 0:00:15]}  Bxc5 {[%clk 0:00:52]} 32. Qxc5 {[%clk 0:00:16]}  Qb8 {[%clk 0:00:49]} 33. Qd4 {[%clk 0:00:16]}  Qf8 {[%clk 0:00:46]} 34. Rc1 {[%clk 0:00:14]}  Qd6 {[%clk 0:00:42]} 35. Qg7+ {[%clk 0:00:14]}  Qe7 {[%clk 0:00:43]} 36. Qg8 {[%clk 0:00:14]}  Kd6 {[%clk 0:00:39]} 37. Qh8 {[%clk 0:00:12]}  e5 {[%clk 0:00:37]} 38. Qb8 {[%clk 0:00:10]}  e4 {[%clk 0:00:36]} 39. Bb7 {[%clk 0:00:10]}  Kd7 {[%clk 0:00:33]} 40. Bxc6+ {[%clk 0:00:08]}  Kd6 {[%clk 0:00:27]} 41. Bxd5 {[%clk 0:00:08]}  e3 {[%clk 0:00:21]} 42. Qxc7+ {[%clk 0:00:06]}  Qxc7 {[%clk 0:00:20]} 43. Rxc7 {[%clk 0:00:07]}  Kxc7 {[%clk 0:00:19]} 44. fxe3 {[%clk 0:00:08]}  Kd6 {[%clk 0:00:19]} 45. Bg8 {[%clk 0:00:08]}  h6 {[%clk 0:00:18]} 46. Kf2 {[%clk 0:00:09]} 1-0


[Site "https://www.chess.com"]

[Event "Titled Tuesday Blitz February 14 Early 2023"]
[White "Hrabinska, Myroslava"]
[Black "Miszler, Levente"]
[WhiteFideId "14109190"]
[BlackFideId "763276"]
[WhiteElo "2210"]
[BlackElo "2271"]
[Result "1-0"]
[Round "06"]
[TimeControl "180+2"]
[Date "2023.02.15"]
[WhiteClock "0:00:13"]
[BlackClock "0:01:05"]

1. e4 {[%clk 0:02:57]}  c6 {[%clk 0:03:00]} 2. d4 {[%clk 0:02:56]}  d5 {[%clk 0:03:00]} 3. e5 {[%clk 0:02:56]}  Bf5 {[%clk 0:02:59]} 4. Nf3 {[%clk 0:02:56]}  c5 {[%clk 0:02:54]} 5. Be2 {[%clk 0:01:59]}  Nc6 {[%clk 0:02:53]} 6. O-O {[%clk 0:01:40]}  e6 {[%clk 0:02:52]} 7. c4 {[%clk 0:01:33]}  cxd4 {[%clk 0:02:51]} 8. Nxd4 {[%clk 0:01:32]}  Nxd4 {[%clk 0:02:48]} 9. Qxd4 {[%clk 0:01:30]}  dxc4 {[%clk 0:02:48]} 10. Qxc4 {[%clk 0:01:24]}  Ne7 {[%clk 0:02:46]} 11. Bg5 {[%clk 0:01:21]}  Qc8 {[%clk 0:02:42]} 12. Qa4+ {[%clk 0:00:56]}  Nc6 {[%clk 0:02:41]} 13. Rc1 {[%clk 0:00:52]}  a6 {[%clk 0:02:31]} 14. Bf3 {[%clk 0:00:43]}  Be7 {[%clk 0:02:26]} 15. Bxe7 {[%clk 0:00:42]}  Kxe7 {[%clk 0:02:25]} 16. Qa3+ {[%clk 0:00:37]}  Ke8 {[%clk 0:02:22]} 17. Nd2 {[%clk 0:00:31]}  Qc7 {[%clk 0:02:22]} 18. Nc4 {[%clk 0:00:29]}  Rd8 {[%clk 0:02:10]} 19. Nd6+ {[%clk 0:00:28]}  Rxd6 {[%clk 0:02:09]} 20. exd6 {[%clk 0:00:28]}  Qd7 {[%clk 0:02:10]} 21. Bxc6 {[%clk 0:00:27]}  bxc6 {[%clk 0:02:10]} 22. Qxa6 {[%clk 0:00:28]}  Be4 {[%clk 0:02:07]} 23. Qa8+ {[%clk 0:00:22]}  Qd8 {[%clk 0:02:07]} 24. Qxd8+ {[%clk 0:00:21]}  Kxd8 {[%clk 0:02:08]} 25. a4 {[%clk 0:00:20]}  Kd7 {[%clk 0:02:08]} 26. a5 {[%clk 0:00:20]}  Kxd6 {[%clk 0:02:05]} 27. b4 {[%clk 0:00:21]}  Bd5 {[%clk 0:01:59]} 28. a6 {[%clk 0:00:21]}  Ra8 {[%clk 0:01:53]} 29. f3 {[%clk 0:00:20]}  Ra7 {[%clk 0:01:46]} 30. Rc5 {[%clk 0:00:20]}  Kc7 {[%clk 0:01:44]} 31. Kf2 {[%clk 0:00:19]}  Kb6 {[%clk 0:01:44]} 32. Rca5 {[%clk 0:00:19]}  Bc4 {[%clk 0:01:41]} 33. Ke3 {[%clk 0:00:16]}  Rxa6 {[%clk 0:01:35]} 34. Rxa6+ {[%clk 0:00:16]}  Bxa6 {[%clk 0:01:36]} 35. Kd4 {[%clk 0:00:16]}  f6 {[%clk 0:01:32]} 36. f4 {[%clk 0:00:14]}  Bb7 {[%clk 0:01:27]} 37. g3 {[%clk 0:00:14]}  Ba6 {[%clk 0:01:25]} 38. Ra5 {[%clk 0:00:12]}  Bb7 {[%clk 0:01:19]} 39. Kc3 {[%clk 0:00:12]}  Ba6 {[%clk 0:01:19]} 40. Ra1 {[%clk 0:00:12]}  Bb7 {[%clk 0:01:18]} 41. Re1 {[%clk 0:00:12]}  Bc8 {[%clk 0:01:16]} 42. Rd1 {[%clk 0:00:12]}  Kc7 {[%clk 0:01:16]} 43. Kc4 {[%clk 0:00:12]}  Ba6+ {[%clk 0:01:08]} 44. Kc5 {[%clk 0:00:12]}  Be2 {[%clk 0:01:07]} 45. Rd6 {[%clk 0:00:12]}  Bf3 {[%clk 0:01:05]} 46. Rxe6 {[%clk 0:00:12]}  Kd7 {[%clk 0:01:05]} 47. Rd6+ {[%clk 0:00:12]}  Kc7 {[%clk 0:01:06]} 48. Rd3 {[%clk 0:00:13]}  Be4 {[%clk 0:01:06]} 49. Re3 {[%clk 0:00:13]}  Bg2 {[%clk 0:01:04]} 50. Re7+ {[%clk 0:00:13]}  Kd8 {[%clk 0:01:05]} 51. Rxg7 {[%clk 0:00:13]} 1-0


[Site "https://www.chess.com"]